fUSD/lending_fUSD_20250520
["ID","MTS","AMOUNT","RATE_DAILY","PERIOD"]
[361732455,1747735858642,-150.32,0.00036186,2]
[361732456,1747735858652,-300.051915,0.00036198,120]
[361732457,1747735858662,-13007.99,0.000362,14]
[361732458,1747735858671,-151.0,0.000362,7]
[361732459,1747735858682,-150.0,0.00036257,7]
[361732460,1747735858691,-1600.0,0.00036283,7]
[361732461,1747735858702,-523.00808,0.00036288,30]
[361732462,1747735858712,-150.0,0.00036296,7]
[361732463,1747735858722,-300.051918,0.00036298,120]
[361732464,1747735858732,-500.0,0.0003632,7]
[361732465,1747735858742,-600.0,0.00036367,7]
[361732466,1747735858752,-300.051918,0.00036398,120]
[361732467,1747735858762,-500.0,0.00036451,7]
[361732468,1747735858771,-1600.0,0.00036454,7]
[361732469,1747735858782,-1600.0,0.00036458,7]
[361732470,1747735858791,-500.0,0.0003647,7]
[361732471,1747735858801,-523.00808,0.00036488,30]
[361732472,1747735858810,-300.051915,0.00036498,120]
[361732473,1747735858820,-1229.463,0.00036499,45]
[361732474,1747735858829,-398.86540225,0.00036507,2]
[361732475,1747735858838,-150.0,0.00036562,7]
[361732476,1747735858848,-300.052004,0.00036598,120]
[361732477,1747735858858,-150.0,0.00036608,7]
[361732478,1747735858867,-150.0,0.00036645,7]
[361732479,1747735858877,-523.00808,0.00036688,30]
[361732480,1747735858887,-1600.0,0.0003669,7]
[361732481,1747735858897,-297.74756271,0.00036693,35]
[361732482,1747735858907,-300.051917,0.00036698,120]
[361732483,1747735858916,-1600.0,0.00036703,7]
[361732484,1747735858926,-1600.0,0.00036725,7]
[361732485,1747735858936,-1600.0,0.00036731,7]
[361732486,1747735858946,-1600.0,0.00036754,7]
[361732487,1747735858955,-300.051915,0.00036798,120]
[361732488,1747735858966,-157.65,0.000368,120]
[361732489,1747735858975,-600.0,0.00036808,7]
[361732490,1747735858985,-150.0,0.00036827,7]
[361732491,1747735858997,-25000.0,0.0003688,120]
[361732492,1747735859008,-1743.3602,0.00036888,7]
[361732493,1747735859018,-523.00808,0.00036888,30]
[361732494,1747735859027,-300.052004,0.00036898,120]
[361732495,1747735859038,-160.0,0.000369,19]
[361732496,1747735859048,-500.0,0.00036917,7]
[361732497,1747735859057,-150.0,0.00036959,7]
[361732498,1747735859067,-150.0,0.00036959,7]
[361732499,1747735859076,-150.0,0.00036959,7]
[361732500,1747735859086,-150.0,0.00036959,7]
[361732501,1747735859095,-150.0,0.00036959,7]
[361732502,1747735859105,-502.24115254,0.0003696,7]
[361732503,1747735859115,-250.0,0.00036988,7]
[361732504,1747735859125,-300.052004,0.00036998,120]
[361732505,1747735859135,-880.92920061,0.00037,2]
[361732506,1747735859145,-900.0,0.00037,38]
[361732507,1747735859155,-152.0,0.00037,30]
[361732508,1747735859165,-800.0,0.00037,2]
[361732509,1747735859175,-325.43,0.00037007,2]
[361732510,1747735859184,-162.78,0.00037007,2]
[361732511,1747735859194,-162.78,0.00037007,2]
[361732512,1747735859203,-162.78,0.00037007,2]
[361732513,1747735859212,-162.78,0.00037007,2]
[361732514,1747735859223,-150.32,0.00037008,2]
[361732515,1747735859232,-150.32,0.00037008,2]
[361732516,1747735859242,-162.78,0.00037008,2]
[361732517,1747735859251,-162.78,0.00037008,2]
[361732518,1747735859260,-170.07,0.00037008,2]
[361732519,1747735859269,-170.08,0.00037008,2]
[361732520,1747735859278,-325.23,0.00037008,2]
[361732521,1747735859287,-170.08,0.00037008,2]
[361732522,1747735859296,-170.08,0.00037008,2]
[361732523,1747735859306,-162.78,0.00037008,2]
[361732524,1747735859315,-162.78,0.00037008,2]
[361732525,1747735859324,-170.08,0.00037008,2]
[361732526,1747735859334,-162.78,0.00037008,2]
[361732527,1747735859343,-170.08,0.00037008,2]
[361732528,1747735859352,-162.78,0.00037008,2]
[361732529,1747735859361,-162.78,0.00037008,2]
[361732530,1747735859370,-162.78,0.00037008,2]
[361732531,1747735859380,-461.18,0.00037008,2]
[361732532,1747735859391,-163.86333729,0.00037067,15]
[361732533,1747735859400,-523.00808,0.00037088,30]
[361732534,1747735859409,-150.0,0.00037092,7]
[361732535,1747735859419,-300.052004,0.00037098,120]
[361732536,1747735859429,-500.0,0.00037112,7]
[361732537,1747735859439,-1600.0,0.00037144,7]
[361732538,1747735859449,-152.0,0.0003715,5]
[361732539,1747735859458,-1600.0,0.0003715,7]
[361732540,1747735859468,-300.051915,0.00037198,120]
[361732541,1747735859479,-150.0,0.00037274,7]
[361732542,1747735859490,-1600.0,0.00037275,7]
[361732543,1747735859500,-523.00808,0.00037288,30]
[361732544,1747735859510,-300.051918,0.00037298,120]
[361732545,1747735859519,-150.0,0.00037311,7]
[361732546,1747735859529,-150.0,0.00037357,7]
[361732547,1747735859538,-300.051918,0.00037398,120]
[361732548,1747735859548,-500.0,0.00037475,7]
[361732549,1747735859559,-523.00808,0.00037488,30]
[361732550,1747735859568,-300.051915,0.00037498,120]
[361732551,1747735859578,-4214.42394723,0.0003759,2]
[361732552,1747735859588,-500.0,0.00037591,7]
[361732553,1747735859598,-150.05201,0.00037598,120]
[361732554,1747735859612,-150.0,0.00037623,7]
[361732555,1747735859631,-150.0,0.00037662,7]
[361732556,1747735859642,-300.0,0.00037671,120]
[361732557,1747735859652,-523.00808,0.00037688,30]
[361732558,1747735859663,-150.05201,0.00037698,120]
[361732559,1747735859675,-297.74756271,0.00037728,37]
[361732560,1747735859686,-150.05201,0.00037798,120]
[361732561,1747735859697,-888.0,0.00037807,5]
[361732562,1747735859707,-687.45,0.00037808,60]
[361732563,1747735859719,-150.0,0.00037812,7]
[361732564,1747735859730,-687.45,0.00037839,80]
[361732565,1747735859741,-1525.18814,0.0003786,35]
[361732566,1747735859752,-687.45,0.00037869,100]
[361732567,1747735859762,-8404.8148733,0.00037874,2]
[361732568,1747735859771,-25000.0,0.0003788,120]
[361732569,1747735859780,-523.00808,0.00037888,30]
[361732570,1747735859790,-150.0,0.00037888,7]
[361732571,1747735859799,-150.05201,0.00037898,120]
[361732572,1747735859808,-22977.53,0.000379,120]
[361732573,1747735859818,-78102.85397826,0.000379,2]
[361732574,1747735859827,-160.0,0.000379,23]
[361732575,1747735859836,-687.45,0.000379,120]
[361732576,1747735859845,-150.0,0.00037902,7]
[361732577,1747735859854,-502.0218041,0.00037944,7]
[361732578,1747735859864,-150.05201,0.00037998,120]
[361732579,1747735859873,-500.0,0.00038,120]
[361732580,1747735859882,-250.0,0.00038,90]
[361732581,1747735859892,-6353.20517351,0.00038,30]
[361732582,1747735859901,-900.0,0.00038,39]
[361732583,1747735859911,-150.0,0.00038,10]
[361732584,1747735859920,-152.0,0.00038,30]
[361732585,1747735859930,-544.99,0.00038,31]
[361732586,1747735859939,-544.99,0.00038,31]
[361732587,1747735859948,-544.99,0.00038,31]
[361732588,1747735859959,-544.99,0.00038,31]
[361732589,1747735859969,-544.99,0.00038,31]
[361732590,1747735859978,-544.99,0.00038,31]
[361732591,1747735859988,-544.99,0.00038,31]
[361732592,1747735860001,-544.99,0.00038,31]
[361732593,1747735860010,-544.99,0.00038,31]
[361732594,1747735860021,-544.99,0.00038,31]
[361732595,1747735860032,-544.99,0.00038,31]
[361732596,1747735860042,-544.99,0.00038,31]
[361732597,1747735860052,-544.99,0.00038,31]
[361732598,1747735860062,-544.99,0.00038,31]
[361732599,1747735860073,-544.99,0.00038,31]
[361732600,1747735860084,-544.99,0.00038,31]
[361732601,1747735860093,-544.99,0.00038,31]
[361732602,1747735860104,-544.99,0.00038,31]
[361732603,1747735860114,-544.99,0.00038,31]
[361732604,1747735860123,-544.99,0.00038,31]
[361732605,1747735860132,-544.99,0.00038,31]
[361732606,1747735860144,-544.99,0.00038,31]
[361732607,1747735860154,-544.99,0.00038,31]
[361732608,1747735860164,-544.99,0.00038,31]
[361732609,1747735860173,-150.0,0.00038013,7]
[361732610,1747735860183,-190.0,0.00038043,30]
[361732611,1747735860192,-500.0,0.00038068,7]
[361732612,1747735860203,-523.00808,0.00038088,30]
[361732613,1747735860212,-150.05201,0.00038098,120]
[361732614,1747735860222,-150.0,0.00038153,7]
[361732615,1747735860232,-150.0,0.00038153,7]
[361732616,1747735860242,-600.0,0.0003816,7]
[361732617,1747735860252,-150.05201,0.00038198,120]
[361732618,1747735860262,-500.0,0.00038268,7]
[361732619,1747735860272,-523.00808,0.00038288,30]
[361732620,1747735860281,-150.05201,0.00038298,120]
[361732621,1747735860291,-1600.0,0.00038334,7]
[361732622,1747735860301,-1600.0,0.00038351,7]
[361732623,1747735860311,-300.0,0.00038356,7]
[361732624,1747735860320,-160.31,0.00038356,4]
[361732625,1747735860330,-190.0,0.00038363,90]
[361732626,1747735860339,-150.0,0.00038364,7]
[361732627,1747735860348,-150.052007,0.00038398,120]
[361732628,1747735860359,-1012.0567144,0.000384,2]
[361732629,1747735860369,-150.0,0.00038419,7]
[361732630,1747735860379,-611.16,0.00038425,2]
[361732631,1747735860388,-150.0,0.00038452,7]
[361732632,1747735860398,-523.00808,0.00038488,30]
[361732633,1747735860407,-500.0,0.00038488,7]
[361732634,1747735860417,-150.052007,0.00038498,120]
[361732635,1747735860427,-275.24026,0.000385,120]
[361732636,1747735860436,-150.0,0.0003853,7]
[361732637,1747735860445,-150.052007,0.00038598,120]
[361732638,1747735860454,-304.56751,0.000386,120]
[361732639,1747735860464,-1958.30121644,0.000386,2]
[361732640,1747735860474,-500.0,0.00038662,7]
[361732641,1747735860483,-150.0,0.00038665,7]
[361732642,1747735860492,-150.0,0.00038684,7]
[361732643,1747735860502,-600.0,0.00038685,7]
[361732644,1747735860512,-523.00808,0.00038688,30]
[361732645,1747735860521,-150.052007,0.00038698,120]
[361732646,1747735860530,-150.0,0.00038715,7]
[361732647,1747735860539,-297.74756271,0.00038762,39]
[361732648,1747735860548,-3498.81,0.00038767,30]
[361732649,1747735860558,-3498.81,0.00038767,30]
[361732650,1747735860567,-3498.81,0.00038767,30]
[361732651,1747735860576,-3498.81,0.00038767,30]
[361732652,1747735860586,-500.0,0.0003877,7]
[361732653,1747735860595,-1600.0,0.00038796,7]
[361732654,1747735860604,-150.052007,0.00038798,120]
[361732655,1747735860614,-831.46401123,0.000388,30]
[361732656,1747735860623,-500.0,0.00038843,60]
[361732657,1747735860633,-25000.0,0.0003888,120]
[361732658,1747735860643,-150.052007,0.00038898,120]
[361732659,1747735860654,-160.0,0.000389,28]
[361732660,1747735860663,-150.0,0.00038949,7]
[361732661,1747735860673,-150.0,0.00038949,7]
[361732662,1747735860682,-2000.0,0.0003897,45]
[361732663,1747735860691,-151.0,0.0003897,14]
[361732664,1747735860701,-3000.0,0.0003898,38]
[361732665,1747735860710,-592.678704,0.0003898,14]
[361732666,1747735860719,-437.0,0.00038986,90]
[361732667,1747735860729,-151.0,0.00038997,14]
[361732668,1747735860738,-151.0,0.00038997,14]
[361732669,1747735860747,-1103.107601,0.00038997,14]
[361732670,1747735860756,-1103.107601,0.00038997,14]
[361732671,1747735860766,-151.0,0.00038997,14]
[361732672,1747735860775,-162.301299,0.00038997,14]
[361732673,1747735860784,-434.65131,0.00038997,14]
[361732674,1747735860794,-434.65131,0.00038997,14]
[361732675,1747735860803,-151.0,0.00038997,14]
[361732676,1747735860813,-162.699053,0.00038997,14]
[361732677,1747735860822,-162.699053,0.00038997,14]
[361732678,1747735860831,-1723.320701,0.00038997,14]
[361732679,1747735860841,-1723.320701,0.00038997,14]
[361732680,1747735860850,-150.052007,0.00038998,120]
[361732681,1747735860859,-1394.42456205,0.00039,10]
[361732682,1747735860869,-218.92208398,0.00039,120]
[361732683,1747735860878,-250.0,0.00039,90]
[361732684,1747735860888,-30000.0,0.00039,120]
[361732685,1747735860899,-3000.0,0.00039,30]
[361732686,1747735860908,-900.0,0.00039,40]
[361732687,1747735860917,-48963.0,0.00039,120]
[361732688,1747735860927,-50577.24473733,0.00039,5]
[361732689,1747735860936,-7612.67090546,0.00039,120]
[361732690,1747735860945,-155.98207582,0.00039,10]
[361732691,1747735860955,-10000.0,0.00039,2]
[361732692,1747735860964,-930.494173,0.00039,2]
[361732693,1747735860973,-152.0,0.00039,30]
[361732694,1747735860983,-151.0,0.00039,14]
[361732695,1747735860993,-850.0,0.00039,2]
[361732696,1747735861003,-151.0,0.00039,14]
[361732697,1747735861013,-151.0,0.00039,14]
[361732698,1747735861023,-151.0,0.00039,14]
[361732699,1747735861033,-151.0,0.00039,14]
[361732700,1747735861043,-151.0,0.00039,14]
[361732701,1747735861052,-151.0,0.00039,14]
[361732702,1747735861063,-151.0,0.00039,14]
[361732703,1747735861072,-151.0,0.00039,14]
[361732704,1747735861083,-161.262017,0.00039,14]
[361732705,1747735861092,-161.262017,0.00039,14]
[361732706,1747735861102,-151.0,0.00039,14]
[361732707,1747735861111,-208.465648,0.00039,14]
[361732708,1747735861121,-187.966777,0.00039,14]
[361732709,1747735861130,-217.568218,0.00039,14]
[361732710,1747735861140,-187.966777,0.00039,14]
[361732711,1747735861150,-217.568218,0.00039,14]
[361732712,1747735861159,-151.0,0.00039,14]
[361732713,1747735861169,-6793.239825,0.00039,14]
[361732714,1747735861179,-6793.239825,0.00039,14]
[361732715,1747735861188,-155.736321,0.00039,14]
[361732716,1747735861198,-409.962276,0.00039,14]
[361732717,1747735861207,-409.962276,0.00039,14]
[361732718,1747735861217,-151.0,0.00039,14]
[361732719,1747735861226,-186.460996,0.00039,14]
[361732720,1747735861235,-186.460996,0.00039,14]
[361732721,1747735861245,-151.0,0.00039,14]
[361732722,1747735861255,-318.579581,0.00039,14]
[361732723,1747735861264,-318.579581,0.00039,14]
[361732724,1747735861274,-201.638305,0.00039,14]
[361732725,1747735861283,-201.638305,0.00039,14]
[361732726,1747735861292,-3498.81,0.00039041,30]
[361732727,1747735861302,-3498.81,0.00039041,30]
[361732728,1747735861311,-150.0,0.00039066,7]
[361732729,1747735861321,-523.00808,0.00039088,30]
[361732730,1747735861331,-500.0,0.00039099,7]
[361732731,1747735861340,-500.0,0.00039113,7]
[361732732,1747735861349,-150.0,0.00039159,7]
[361732733,1747735861359,-500.0,0.00039175,7]
[361732734,1747735861369,-600.0,0.00039178,7]
[361732735,1747735861384,-500.0,0.00039178,7]
[361732736,1747735861393,-500.0,0.00039186,7]
[361732737,1747735861403,-150.052007,0.00039198,120]
[361732738,1747735861412,-150.0,0.00039215,7]
[361732739,1747735861422,-500.0,0.00039256,7]
[361732740,1747735861431,-523.00808,0.00039288,30]
[361732741,1747735861441,-150.052007,0.00039298,120]
[361732742,1747735861450,-3498.81,0.00039315,30]
[361732743,1747735861460,-3498.81,0.00039315,30]
[361732744,1747735861469,-500.0,0.00039338,7]
[361732745,1747735861479,-150.0,0.00039347,7]
[361732746,1747735861488,-500.0,0.00039394,7]
[361732747,1747735861498,-150.052007,0.00039398,120]
[361732748,1747735861508,-150.0,0.00039418,7]
[361732749,1747735861517,-3589.21479,0.0003944,38]
[361732750,1747735861527,-1600.0,0.00039454,7]
[361732751,1747735861536,-906.28,0.0003946,2]
[361732752,1747735861546,-453.17,0.0003946,2]
[361732753,1747735861555,-150.0,0.0003948,7]
[361732754,1747735861564,-2110.0,0.00039484,2]
[361732755,1747735861573,-523.00808,0.00039488,30]
[361732756,1747735861584,-150.052007,0.00039498,120]
[361732757,1747735861594,-70000.0,0.000395,50]
[361732758,1747735861604,-250.0996334,0.000395,14]
[361732759,1747735861613,-304.56751,0.000395,120]
[361732760,1747735861623,-275.24026,0.000395,120]
[361732761,1747735861632,-500.0,0.000395,90]
[361732762,1747735861642,-151.0,0.000395,14]
[361732763,1747735861652,-152.598954,0.000395,14]
[361732764,1747735861662,-633.074428,0.000395,14]
[361732765,1747735861671,-633.074428,0.000395,14]
[361732766,1747735861681,-151.0,0.000395,14]
[361732767,1747735861692,-151.0,0.000395,14]
[361732768,1747735861702,-151.0,0.000395,14]
[361732769,1747735861712,-229.097503,0.000395,14]
[361732770,1747735861722,-229.097503,0.000395,14]
[361732771,1747735861731,-438.990697,0.000395,14]
[361732772,1747735861741,-438.990697,0.000395,14]
[361732773,1747735861751,-151.0,0.000395,14]
[361732774,1747735861760,-151.0,0.000395,14]
[361732775,1747735861770,-857.540389,0.000395,14]
[361732776,1747735861780,-151.0,0.000395,14]
[361732777,1747735861791,-857.540389,0.000395,14]
[361732778,1747735861801,-299.254698,0.000395,14]
[361732779,1747735861811,-299.254698,0.000395,14]
[361732780,1747735861826,-900.456128,0.000395,14]
[361732781,1747735861836,-900.456128,0.000395,14]
[361732782,1747735861846,-151.0,0.000395,14]
[361732783,1747735861856,-203.557219,0.000395,14]
[361732784,1747735861867,-1250.956694,0.000395,14]
[361732785,1747735861877,-203.557219,0.000395,14]
[361732786,1747735861887,-1250.956694,0.000395,14]
[361732787,1747735861897,-151.0,0.000395,14]
[361732788,1747735861907,-152.499243,0.000395,14]
[361732789,1747735861917,-454.721421,0.000395,14]
[361732790,1747735861926,-151.0,0.000395,14]
[361732791,1747735861937,-454.721421,0.000395,14]
[361732792,1747735861949,-170.035282,0.000395,14]
[361732793,1747735861960,-503.968045,0.000395,14]
[361732794,1747735861971,-759.91098,0.000395,14]
[361732795,1747735861983,-503.968045,0.000395,14]
[361732796,1747735861995,-759.91098,0.000395,14]
[361732797,1747735862005,-151.0,0.000395,14]
[361732798,1747735862016,-151.0,0.000395,14]
[361732799,1747735862027,-151.0,0.000395,14]
[361732800,1747735862039,-4440.011387,0.000395,14]
[361732801,1747735862049,-4440.011387,0.000395,14]
[361732802,1747735862059,-151.0,0.000395,14]
[361732803,1747735862072,-151.0,0.000395,14]
[361732804,1747735862083,-434.834512,0.000395,14]
[361732805,1747735862093,-434.834512,0.000395,14]
[361732806,1747735862104,-151.0,0.000395,14]
[361732807,1747735862114,-151.0,0.000395,14]
[361732808,1747735862124,-190.511498,0.000395,14]
[361732809,1747735862136,-190.511498,0.000395,14]
[361732810,1747735862147,-150.0,0.00039518,7]
[361732811,1747735862159,-600.0,0.00039559,7]
[361732812,1747735862171,-167.63916253,0.00039574,7]
[361732813,1747735862182,-810.0,0.00039589,7]
[361732814,1747735862193,-3498.81,0.00039589,30]
[361732815,1747735862204,-3498.81,0.00039589,30]
[361732816,1747735862214,-579.81084804,0.00039593,7]
[361732817,1747735862225,-150.052006,0.00039598,120]
[361732818,1747735862236,-500.0,0.00039632,7]
[361732819,1747735862248,-809.24,0.00039654,2]
[361732820,1747735862259,-25524.06586732,0.0003966,30]
[361732821,1747735862271,-151.0,0.0003966,14]
[361732822,1747735862283,-151.0,0.0003966,14]
[361732823,1747735862294,-1600.0,0.00039669,7]
[361732824,1747735862305,-523.00808,0.00039688,30]
[361732825,1747735862315,-150.052006,0.00039698,120]
[361732826,1747735862326,-1161.68,0.00039726,120]
[361732827,1747735862336,-1161.68,0.00039726,120]
[361732828,1747735862347,-1161.68,0.00039726,120]
[361732829,1747735862357,-1161.68,0.00039726,120]
[361732830,1747735862368,-1161.68,0.00039726,120]
[361732831,1747735862378,-1161.68,0.00039726,120]
[361732832,1747735862389,-1161.68,0.00039726,120]
[361732833,1747735862401,-1161.68,0.00039726,120]
[361732834,1747735862411,-1161.68,0.00039726,120]
[361732835,1747735862422,-1161.68,0.00039726,120]
[361732836,1747735862432,-1161.68,0.00039726,120]
[361732837,1747735862442,-1161.68,0.00039726,120]
[361732838,1747735862453,-1161.68,0.00039726,120]
[361732839,1747735862465,-1161.68,0.00039726,120]
[361732840,1747735862477,-1161.68,0.00039726,120]
[361732841,1747735862488,-1161.68,0.00039726,120]
[361732842,1747735862498,-1161.68,0.00039726,120]
[361732843,1747735862509,-1161.68,0.00039726,120]
[361732844,1747735862520,-1161.68,0.00039726,120]
[361732845,1747735862530,-1161.76778853,0.00039726,120]
[361732846,1747735862541,-1000.0,0.00039726,120]
[361732847,1747735862551,-1000.0,0.00039726,120]
[361732848,1747735862561,-672.03,0.00039726,120]
[361732849,1747735862571,-1000.0,0.00039726,120]
[361732850,1747735862582,-1000.0,0.00039726,120]
[361732851,1747735862593,-1000.0,0.00039726,120]
[361732852,1747735862604,-1000.0,0.00039726,120]
[361732853,1747735862615,-1000.0,0.00039726,120]
[361732854,1747735862626,-1000.0,0.00039726,120]
[361732855,1747735862637,-1000.0,0.00039726,120]
[361732856,1747735862648,-1000.0,0.00039726,120]
[361732857,1747735862659,-1000.0,0.00039726,120]
[361732858,1747735862670,-1000.0,0.00039726,120]
[361732859,1747735862681,-1000.0,0.00039726,120]
[361732860,1747735862692,-1000.0,0.00039726,120]
[361732861,1747735862703,-1000.0,0.00039726,120]
[361732862,1747735862714,-553.08750213,0.00039726,120]
[361732863,1747735862725,-1000.0,0.00039726,120]
[361732864,1747735862736,-942.79,0.00039726,120]
[361732865,1747735862747,-697.52,0.00039726,120]
[361732866,1747735862758,-153.56,0.00039726,120]
[361732867,1747735862768,-767.97,0.00039726,120]
[361732868,1747735862779,-1000.0,0.00039726,120]
[361732869,1747735862789,-1000.0,0.00039726,120]
[361732870,1747735862813,-309.86,0.00039726,120]
[361732871,1747735862825,-400.0,0.00039726,120]
[361732872,1747735862835,-617.19,0.00039726,120]
[361732873,1747735862846,-400.0,0.00039726,120]
[361732874,1747735862857,-446.82,0.00039726,120]
[361732875,1747735862868,-458.52,0.00039726,120]
[361732876,1747735862880,-496.31,0.00039726,120]
[361732877,1747735862891,-784.95,0.00039726,120]
[361732878,1747735862903,-775.11,0.00039726,120]
[361732879,1747735862915,-482.26,0.00039726,120]
[361732880,1747735862926,-763.79,0.00039726,120]
[361732881,1747735862938,-751.22,0.00039726,120]
[361732882,1747735862950,-1000.0,0.00039726,120]
[361732883,1747735862961,-473.16,0.00039726,120]
[361732884,1747735862972,-736.58,0.00039726,120]
[361732885,1747735862984,-727.84,0.00039726,120]
[361732886,1747735863000,-683.86,0.00039726,120]
[361732887,1747735863011,-800.0,0.00039726,120]
[361732888,1747735863022,-725.19,0.00039726,120]
[361732889,1747735863035,-737.49215099,0.00039726,120]
[361732890,1747735863047,-219.912667,0.00039726,14]
[361732891,1747735863059,-572.973164,0.00039726,14]
[361732892,1747735863072,-572.973164,0.00039726,14]
[361732893,1747735863083,-194.639679,0.00039726,14]
[361732894,1747735863095,-194.639679,0.00039726,14]
[361732895,1747735863106,-151.0,0.00039726,14]
[361732896,1747735863118,-222.373108,0.00039726,14]
[361732897,1747735863130,-151.0,0.00039726,14]
[361732898,1747735863141,-151.0,0.00039726,14]
[361732899,1747735863154,-150.0,0.00039745,7]
[361732900,1747735863166,-150.0,0.00039769,7]
[361732901,1747735863179,-600.0,0.00039779,7]
[361732902,1747735863192,-150.0,0.00039787,7]
[361732903,1747735863203,-297.74756271,0.00039797,41]
[361732904,1747735863215,-150.052004,0.00039798,120]
[361732905,1747735863226,-2960.4647454,0.000398,120]
[361732906,1747735863246,-411.8595181,0.000398,120]
[361732907,1747735863257,-60000.0,0.000398,50]
[361732908,1747735863269,-1513.0,0.000398,120]
[361732909,1747735863281,-203.981245,0.000398,14]
[361732910,1747735863292,-151.0,0.000398,14]
[361732911,1747735863304,-151.0,0.000398,14]
[361732912,1747735863316,-157.996119,0.000398,14]
[361732913,1747735863327,-592.678704,0.000398,14]
[361732914,1747735863339,-151.0,0.000398,14]
[361732915,1747735863351,-157.513746,0.000398,14]
[361732916,1747735863364,-161.262017,0.000398,14]
[361732917,1747735863377,-161.262017,0.000398,14]
[361732918,1747735863390,-305.5682929,0.0003982,7]
[361732919,1747735863403,-3498.81,0.00039863,30]
[361732920,1747735863415,-3498.81,0.00039863,30]
[361732921,1747735863428,-6000.0,0.0003987,44]
[361732922,1747735863440,-2012.18604047,0.0003988,120]
[361732923,1747735863452,-25000.0,0.0003988,120]
[361732924,1747735863464,-151.0,0.0003988,14]
[361732925,1747735863475,-523.00808,0.00039888,30]
[361732926,1747735863487,-160.0,0.000399,32]
[361732927,1747735863499,-155.07714686,0.000399,120]
[361732928,1747735863510,-155.07714686,0.000399,120]
[361732929,1747735863521,-155.07714686,0.000399,120]
[361732930,1747735863534,-155.07714686,0.000399,120]
[361732931,1747735863546,-155.07714686,0.000399,120]
[361732932,1747735863558,-155.07714686,0.000399,120]
[361732933,1747735863569,-155.07714686,0.000399,120]
[361732934,1747735863581,-155.07714686,0.000399,120]
[361732935,1747735863593,-155.07714686,0.000399,120]
[361732936,1747735863605,-155.07714686,0.000399,120]
[361732937,1747735863616,-500.0,0.00039939,60]
[361732938,1747735863628,-150.0,0.00039944,7]
[361732939,1747735863640,-546.87993792,0.0003997,120]
[361732940,1747735863653,-2110.0,0.00039984,2]
[361732941,1747735863672,-428.8967576,0.00039986,90]
[361732942,1747735863684,-320.0,0.00039988,30]
[361732943,1747735863697,-500.0,0.00039999,31]
[361732944,1747735863710,-198.73555131,0.00039999,31]
[361732945,1747735863723,-634.29802117,0.00039999,31]
[361732946,1747735863736,-500.0,0.00039999,31]
[361732947,1747735863749,-500.0,0.00039999,31]
[361732948,1747735863761,-500.0,0.00039999,31]
[361732949,1747735863774,-500.0,0.00039999,31]
[361732950,1747735863787,-500.0,0.00039999,31]
[361732951,1747735863802,-500.0,0.00039999,31]
[361732952,1747735863815,-500.0,0.00039999,31]
[361732953,1747735863828,-1522.08809432,0.00039999,31]
[361732954,1747735863840,-1522.08809432,0.00039999,31]